Cogmind - Beta 16.1 @@@ ROGUE MODE // 2026.04.04 @ 20:57:46 Player: SunShine214 Result: Destroyed by P-70 Sage with Tesla Rifle Performance ------------- Evolutions (5) 2500 Regions Visited (13) 2600 Robots Destroyed (56) 280 Value Destroyed (3339) 3339 Prototype IDs (18) 360 Alien Tech Used (0) 0 Bonus (9379) 9379 TOTAL SCORE: 18458 Bonus ------- High Alert Combat Kills 158 Follower Combat Kills 6483 Entered Garrisons 800 Used RIF Installer 2000 Friendly Fire -62 Cogmind --------- Core Integrity 0/1000 Matter 221/550 Energy 99/100 System Corruption 16% Temperature Cool (0) Movement Core (100) Ox1 Location -5/Factory Parts ------- > --- POWER (1) -------- (None) > --- PROPULSION (4) --- (None) > --- UTILITY (5) ------ Matter Compressor Enhanced Optical Array Relay Coupler [NC] (15) > --- WEAPON (7) ------- (None) > --- INVENTORY (5) ---- Matter Compressor (250) Improved Medium Armor Plating Precision Rocket Launcher Improved Remote Datajack Power Sword Peak State ------------ > --- POWER ------------ Light Antimatter Reactor > --- PROPULSION ------- Advanced Treads Improved Medium Treads Biometal Medium Treads Biometal Medium Treads > --- UTILITY ---------- Large Storage Unit Matter Compressor Enhanced Optical Array Layered Light Armor Plating Relay Coupler [Grunt] > --- WEAPON ----------- Heavy Linear Accelerator 1B-0RG's Assimilator > --- INVENTORY -------- Armored Treads Armored Treads Matter Compressor Advanced Signal Interpreter Advanced Phase Shifter Point Defense System Relay Coupler [NC] Relay Coupler [Specialist] Relay Coupler [Heavy] Heavy Missile Launcher Heavy Missile Launcher Precision Rocket Launcher Remote Datajack Power Sword Segregator [Rating: 137] Favorites ----------- Power Light Nuclear Core Engine Ion Engine Power Core Light Nuclear Core Reactor Light Antimatter Reactor Propulsion Armored Treads Treads Armored Treads Leg Aluminum Leg Flight Unit VTOL Module Utility Large Storage Unit Device Structural Scanner Storage Large Storage Unit Processor Enhanced Optical Array Hackware Relay Coupler [Grunt] Protection Hardened Medium Armor Plating Weapon 1B-0RG's Assimilator Energy Gun Subdweller Laser Energy Cannon Improved EM Pulse Cannon Ballistic Gun Light Assault Rifle Ballistic Cannon Heavy Linear Accelerator Launcher Grenade Launcher Special Weapon Remote Datajack Impact Weapon Makeshift Hammer Slashing Weapon Power Sword Special Melee Weapon 1B-0RG's Assimilator Build | -11 -10 -10 -8 -8 -8 -7 -7 -7 -6 -6 -6 -6 -5 ------- Run | Yrd Mat Sub Mat Gar Mat Fac Gar Fac Fac Gar Fac Gar Fac Slots Evolved 10 | . . . 4 . . 2 . . 2 . . . 2 Power . | . . . . . . . . . . . . . . Propulsion 2 | . . . . . . 1 . . 1 . . . . Utility 3 | . . . 1 . . . . . 1 . . . 1 Weapon 5 | . . . 3 . . 1 . . . . . . 1 Parts Attached 94 | 7 7 16 12 . 3 1 5 9 13 5 1 2 13 Power 11 | 1 1 1 1 . . . . 2 . 3 . 1 1 Engine 6 | 1 1 1 . . . . . 1 . 2 . . . Core 3 | . . . 1 . . . . 1 . . . . 1 Reactor 2 | . . . . . . . . . . 1 . 1 . Propulsion 28 | 2 . 6 3 . . . 4 3 8 . . . 2 Treads 18 | 2 . 1 2 . . . . 3 8 . . . 2 Leg 7 | . . 2 1 . . . 4 . . . . . . Wheel . | . . . . . . . . . . . . . . Hover . | . . . . . . . . . . . . . . Flight 3 | . . 3 . . . . . . . . . . . Utility 25 | 2 2 5 2 . 3 . . 2 3 . . 1 5 Device 4 | 1 . 2 . . . . . . . . . . 1 Storage 6 | 1 2 . . . 2 . . . . . . . 1 Processor 3 | . . 1 1 . . . . . 1 . . . . Hackware 7 | . . 1 . . . . . 2 1 . . 1 2 Protection 5 | . . 1 1 . 1 . . . 1 . . . 1 Artifact . | . . . . . . . . . . . . . . Weapon 30 | 2 4 4 6 . . 1 1 2 2 2 1 . 5 Energy Gun 4 | . 1 1 1 . . . . . . . . . 1 Energy Cannon 5 | . . 1 2 . . 1 . 1 . . . . . Ballistic Gun 5 | 2 1 . 1 . . . . . . . . . 1 Ballistic Cannon 1 | . . . . . . . . . . . . . 1 Launcher 5 | . 1 1 1 . . . . . 1 . . . 1 Special Weapon 4 | . 1 . . . . . 1 1 . . . . 1 Impact Weapon 3 | . . 1 . . . . . . 1 1 . . . Slashing Weapon 2 | . . . . . . . . . . 1 1 . . Piercing Weapon . | . . . . . . . . . . . . . . Special Melee Weapon 1 | . . . 1 . . . . . . . . . . Unidentified Prototypes 3 | . . . 1 . . 1 . . 1 . . . . Corrupted Parts 1 | . . . . . . . . . . . . . 1 System Corruption 3 | . . . . . . . . . . . . . 3 Parts Lost 41 | . . 12 . . . . 2 3 4 2 . . 18 Power 7 | . . 2 . . . . . 1 . 2 . . 2 Propulsion 15 | . . 7 . . . . 1 1 2 . . . 4 Utility 10 | . . 1 . . . . 1 1 2 . . . 5 Weapon 9 | . . 2 . . . . . . . . . . 7 Highest Loss Streak 17 | . . 5 . . . . 1 2 2 1 . . 17 To Critical Strikes 2 | . . 1 . . . . . . . . . . 1 Average Backups 10 | 1 7 8 2 5 6 10 14 14 14 14 14 14 13 Power . | . . . . 1 1 1 1 . . . . . . Propulsion 1 | . . 1 . 2 2 2 2 1 . . . . 1 Utility 4 | . 2 3 . 1 1 2 3 4 8 7 8 8 6 Weapon 4 | 1 3 2 . 1 2 4 6 6 5 4 5 5 4 Tool/Special . | . . . . . . . . . . . . . . Unused Backups 27 | . . 5 1 . . . 4 . 4 5 . 2 6 Power 1 | . . . 1 . . . . . . . . . . Propulsion 3 | . . . . . . . 2 . 1 . . . . Utility 13 | . . 1 . . . . 1 . 1 4 . 2 4 Weapon 9 | . . 4 . . . . 1 . 2 1 . . 1 Tool/Special 1 | . . . . . . . . . . . . . 1 Average Slot Usage (%) 72 | . 100 87 72 63 63 61 60 67 68 72 72 73 65 Engine 1 | . 14 5 2 . . . . . . 3 . . . Core 3 | . . . 4 9 9 7 7 5 6 1 . . . Treads 16 | . 28 9 13 18 18 15 2 4 24 26 26 26 21 Leg 4 | . . 6 3 . . . 18 18 . . . . . Flight 1 | . . 8 . . . . . . . . . . . Device 1 | . 14 7 . . . . . . . . . . . Storage 7 | . 14 12 . . 6 7 7 7 6 6 6 6 9 Processor 2 | . . . 8 9 2 . . . 1 6 6 6 5 Hackware 6 | . . 1 9 9 9 7 1 11 12 6 6 6 7 Protection 5 | . . 6 9 9 9 7 7 2 2 6 6 6 2 Energy Cannon 2 | . . 2 7 . . 2 2 3 3 . . . . Launcher 2 | . 9 8 1 . . . . . . . . . . Impact Weapon 4 | . . 12 4 . . 4 4 . 2 4 2 . . Special Melee Weapon 4 | . . . 4 9 9 7 7 7 6 6 6 6 4 Peak Build Rating 137 | 9 12 22 84 84 84 91 91 92 106 111 112 112 137 Average Rating 75 | 5 9 17 59 84 83 88 88 89 95 107 111 111 120 On Entrance 71 | . 9 12 22 84 84 84 91 88 88 106 111 112 112 Avg Prop Armor Cover (%) 5 | . . 5 7 . . . 4 5 7 . . . . Naked Turns . | . . . . . . . . . . . . . . Heaviest Build 126 | 13 32 33 68 68 88 95 95 95 89 94 94 94 126 Greatest Support 122 | 40 40 40 43 43 43 43 43 60 92 92 92 92 122 Greatest Overweight (x) 9 | . . 8 3 1 2 2 9 2 1 1 1 1 8 Average Overweight (x) 1 | . . 1 . 1 1 2 2 1 . . . 1 . Largest Inventory Capacity 15 | 8 15 15 5 5 15 15 15 15 15 15 15 15 15 Average Capacity 12 | 7 10 11 5 5 12 15 15 15 15 15 15 15 14 Most Carried 15 | 2 15 15 5 5 9 14 15 15 15 15 15 15 15 Average Carried 11 | 1 7 10 4 5 6 10 14 14 14 14 15 14 13 Final Capacity 15 | 8 15 5 5 5 15 15 15 15 15 15 15 15 5 Final Carried 15 | 2 15 5 5 5 9 14 15 15 15 15 15 15 5 Class Distribution -------------------- 54% | Mutant 32% | Bothacker-Mutant 10% | Scavenger-Mutant Dominant Class ---------------- Mutant | -10/Materials Mutant | -10/Subcaves Mutant | -8/Materials Mutant | -8/Garrison Mutant | -8/Materials Mutant | -7/Factory Mutant | -7/Garrison Bothacker-Mutant | -7/Factory Scavenger-Mutant | -6/Factory Bothacker-Mutant | -6/Garrison Bothacker-Mutant | -6/Factory Bothacker-Mutant | -6/Garrison Bothacker-Mutant | -5/Factory Resources | -11 -10 -10 -8 -8 -8 -7 -7 -7 -6 -6 -6 -6 -5 ----------- Run | Yrd Mat Sub Mat Gar Mat Fac Gar Fac Fac Gar Fac Gar Fac Matter Collected 9420 | 280 203 280 1131 31 30 238 895 135 1927 1693 273 1125 1179 Remotely . | . . . . . . . . . . . . . . Salvage Created 2008 | 139 342 264 425 . . 67 117 57 160 91 . 200 146 Parts 91 | 10 26 15 17 . . 1 4 3 1 3 . 4 7 Haulers Intercepted 3 | . 1 . 2 . . . . . . . . . . Recyclers Shooed . | . . . . . . . . . . . . . . Parts Field Recycled . | . . . . . . . . . . . . . . Retrieved Matter . | . . . . . . . . . . . . . . Parts Self-Destructed 25 | . . 25 . . . . . . . . . . . Prevented . | . . . . . . . . . . . . . . Parts Restored . | . . . . . . . . . . . . . . Kills | -11 -10 -10 -8 -8 -8 -7 -7 -7 -6 -6 -6 -6 -5 ------- Run | Yrd Mat Sub Mat Gar Mat Fac Gar Fac Fac Gar Fac Gar Fac Combat Hostiles Destroyed 36 | . 7 12 8 . . 1 2 1 . 3 . . 2 Melee 7 | . . 2 1 . . . 1 . . 3 . . . Guns 4 | . 3 . . . . . . . . . . . 1 Cannons 7 | . . 1 4 . . 1 . . . . . . 1 AOE 14 | . 4 8 1 . . . . 1 . . . . . Classes Destroyed 15 | 2 6 3 2 . . . . . . . . . 2 Worker 2 | . 1 . . . . . . . . . . . 1 Builder 4 | . 2 . . . . 1 . 1 . . . . . Tunneler 2 | 2 . . . . . . . . . . . . . Hauler 3 | . 1 . 2 . . . . . . . . . . Recycler 2 | 1 . . . . . . . . 1 . . . . Mechanic 3 | . 1 . . . . . . . 1 . . . 1 Operator 2 | . 1 . 1 . . . . . . . . . . Turret 1 | . . 1 . . . . . . . . . . . Watcher 1 | . . . 1 . . . . . . . . . . Swarmer 8 | . . 3 3 . . . . . . 2 . . . Grunt 15 | . 7 . 4 . . 1 1 1 . 1 . . . Sentry 2 | . . . 1 . . . 1 . . . . . . Hunter 1 | . . . . . . . . . . . . . 1 Programmer 1 | . . . . . . . . . . . . . 1 Subdweller 9 | . . 9 . . . . . . . . . . . Best Kill Streak 4 | 3 4 2 4 . . 1 1 1 2 2 . . 2 Combat Bots Only 3 | . 2 2 3 . . 1 1 1 . 2 . . 1 Max Kills in Single Turn 3 | 1 3 1 1 . . 1 1 1 1 1 . . 1 Gunslinging . | . . . . . . . . . . . . . . Exploded 1 | . 1 1 1 . . . . 1 . . . . . Melee 1 | . . 1 1 . . . 1 . . 1 . . . Uniques/NPCs Destroyed . | . . . . . . . . . . . . . . Combat | -11 -10 -10 -8 -8 -8 -7 -7 -7 -6 -6 -6 -6 -5 -------- Run | Yrd Mat Sub Mat Gar Mat Fac Gar Fac Fac Gar Fac Gar Fac Hostile Shots Fired 860 | . 29 131 52 5 13 13 80 19 169 102 . 34 213 Missed 266 | . 8 46 9 3 3 4 26 7 67 36 . 9 48 Hits 594 | . 21 85 43 2 10 9 54 12 102 66 . 25 165 Melee 12 | . . . 2 . . . . . 9 1 . . . Projectile 582 | . 21 85 41 2 10 9 54 12 93 65 . 25 165 Critical Strikes 18 | . . 3 2 . 1 1 . . 1 . . . 10 Part Disruptions 1 | . . . . . . . . . 1 . . . . Damage Taken 10271 | . 267 1242 830 19 166 213 674 490 1888 891 28 407 3156 Core 2049 | . 50 187 133 2 28 40 81 22 261 151 28 64 1002 Absorbed by Shields . | . . . . . . . . . . . . . . Regen/Repaired (Parts) 1348 | . 31 . 145 . 22 13 156 158 522 178 . 51 72 Core Remaining (%) 58 | 100 . 5 . . 70 . . 79 . . . 40 . Volleys Fired 166 | 5 27 39 18 . . 3 6 12 8 5 . 16 27 Largest 4 | 2 2 1 4 . . 1 1 1 1 1 . 1 1 Hottest 250 | 40 120 80 250 . . 30 30 69 69 5 . 5 70 Shots Fired 228 | 10 54 39 48 . . 3 6 12 8 5 . 16 27 Gun 77 | 10 43 2 13 . . . . . . . . . 9 Cannon 80 | . . 18 32 . . 3 4 5 8 . . . 10 Launcher 35 | . 10 19 3 . . . . . . . . . 3 Special 36 | . 1 . . . . . 2 7 . 5 . 16 5 Kinetic 77 | 10 43 . 7 . . . . . . . . . 17 Thermal 66 | . 1 20 38 . . 3 4 . . . . . . Explosive 35 | . 10 19 3 . . . . . . . . . 3 Electromagnetic 15 | . . . . . . . . 5 8 . . . 2 Robot Hit Streak 13 | 8 5 11 13 . . 4 9 10 5 9 . 10 8 Robot Miss Streak 6 | 1 2 5 3 . . . . 1 1 . . 1 6 Penetration Max . | . . . . . . . . . . . . . . Secondary Targets . | . . . . . . . . . . . . . . Shots Hit Robots 191 | 8 29 42 37 . . 4 7 8 7 11 . 24 14 Core Hits 83 | 5 26 19 12 . . 1 1 2 3 3 . 4 7 Critical Kills 3 | . 1 1 1 . . . . . . . . . . Critical Parts Destroyed 4 | . . 1 1 . . 1 1 . . . . . . Critical Strikes 8 | . 1 3 2 . . 1 1 . . . . . . Meltdown 2 | . . 1 1 . . . . . . . . . . Destroy 1 | . 1 . . . . . . . . . . . . Smash 5 | . . 2 1 . . 1 1 . . . . . . Melee Attacks 122 | . . 58 5 . . 1 13 . . 26 . 16 3 Thermal 5 | . . . . . . . . . . 2 . . 3 Impact 101 | . . 58 5 . . 1 13 . . 24 . . . Slashing 16 | . . . . . . . . . . . . 16 . Piercing . | . . . . . . . . . . . . . . Sneak Attacks 4 | . . 1 1 . . 1 1 . . . . . . Combat Hostiles 2 | . . 1 . . . . 1 . . . . . . Follow-up Attacks . | . . . . . . . . . . . . . . Damage Inflicted 6817 | 62 861 2174 1143 . . 201 199 263 286 308 . 557 763 Guns 562 | 61 224 23 104 . . . . . . . . . 150 Cannons 1518 | . . 229 611 . . 81 80 40 202 . . . 275 Explosions 2330 | . 637 937 149 . . . . 197 84 . . . 326 Melee 2368 | . . 985 279 . . 120 119 . . 308 . 557 . Ramming 39 | 1 . . . . . . . 26 . . . . 12 Kinetic 693 | 61 224 . 34 . . . . . . . . . 374 Thermal 1375 | . . 252 681 . . 81 80 197 84 . . . . Explosive 2049 | . 637 937 149 . . . . . . . . . 326 Electromagnetic 293 | . . . . . . . . 40 202 . . . 51 Impact 1811 | . . 985 279 . . 120 119 . . 308 . . . Slashing 557 | . . . . . . . . . . . . 557 . Piercing . | . . . . . . . . . . . . . . Highest Corruption 16 | . . . . . . . . 2 4 8 8 8 16 Average Corruption 6 | . . . . . . . . 1 4 5 8 8 6 Corruption Purged . | . . . . . . . . . . . . . . Corruption Blocked . | . . . . . . . . . . . . . . Effects 134 | . . . . . . . . 5 23 37 17 49 3 Message Errors 31 | . . . . . . . . . 8 9 3 10 1 Matter Fused 35 | . . . . . . . . 1 4 10 6 14 . Heat Flow Errors 21 | . . . . . . . . 1 5 7 3 5 . Energy Discharges 16 | . . . . . . . . 1 2 3 2 7 1 Parts Rejected 2 | . . . . . . . . . 1 . . 1 . Parts Fused 1 | . . . . . . . . . . . 1 . . Data Loss (minor) 15 | . . . . . . . . . 1 7 1 6 . Data Loss (major) 8 | . . . . . . . . 2 2 . 1 3 . Alerts 4 | . . . . . . . . . . 1 . 3 . Misdirections 1 | . . . . . . . . . . . . . 1 Overload Shots . | . . . . . . . . . . . . . . Overflow Damage 677 | . 52 189 155 . . 120 35 5 . 1 . 64 56 Projectiles 54 | . . 1 15 . . . . . . . . . 38 Explosions 80 | . 52 5 . . . . . 5 . . . . 18 Melee 543 | . . 183 140 . . 120 35 . . 1 . 64 . Knockbacks 10 | . . 6 1 . . . . . . 1 . . 2 Impact 7 | . . 6 1 . . . . . . . . . . Kinetic 2 | . . . . . . . . . . . . . 2 Secondary 1 | . . . . . . . . . . 1 . . . Self-Inflicted Damage 230 | . 11 186 24 . . . . . . . . . 9 Shots 11 | . 2 7 1 . . . . . . . . . 1 Rammed 4 | 1 . . . . . . . . . . . . 3 Targets Rammed 11 | 1 . . . . . . . 7 . . . . 3 Kicked 6 | . . . . . . . . 6 . . . . . Crushed 1 | . . . . . . . . 1 . . . . . Highest Temperature 544 | . 40 96 544 . 10 5 11 219 266 267 145 224 18 Average Temperature 97 | . 10 39 168 . 10 5 5 58 83 107 76 102 9 Received Heat Transfer 2016 | . 141 318 297 . 54 99 258 12 534 201 . 75 27 Effects 2 | . . . 2 . . . . . . . . . . Shutdowns 1 | . . . 1 . . . . . . . . . . Interference 1 | . . . 1 . . . . . . . . . . Siege Activations . | . . . . . . . . . . . . . . Martial Activations . | . . . . . . . . . . . . . . Shielding Activations . | . . . . . . . . . . . . . . Robots Disrupted . | . . . . . . . . . . . . . . Combat Hostiles . | . . . . . . . . . . . . . . Robots Corrupted 5 | . . 1 2 . . . 1 . 1 . . . . Combat Hostiles 3 | . . 1 1 . . . 1 . . . . . . Parts Fried 5 | . . 1 1 . . . 1 . 2 . . . . Impact Corruptions 16 | . . 5 6 . . 3 1 . . 1 . . . Robots Melted 2 | . . 1 1 . . . . . . . . . . Combat Hostiles 1 | . . . 1 . . . . . . . . . . Parts Melted . | . . . . . . . . . . . . . . Heat Transferred 1929 | . . 321 1036 . . 111 111 300 50 . . . . Parts Sabotaged . | . . . . . . . . . . . . . . Parts Stolen . | . . . . . . . . . . . . . . Parts Stripped . | . . . . . . . . . . . . . . Power Chain Reactions 2 | . . . . . . . . 1 1 . . . . Alert | -11 -10 -10 -8 -8 -8 -7 -7 -7 -6 -6 -6 -6 -5 ------- Run | Yrd Mat Sub Mat Gar Mat Fac Gar Fac Fac Gar Fac Gar Fac Maximum Alert Level 5 | . . . . 1 1 . 4 3 2 3 2 5 4 Low Security (%) 46 | 100 100 . 100 57 98 100 33 . 50 3 . . . Level 1 16 | . . . . 42 1 . 11 . 47 16 86 6 . Level 2 14 | . . . . . . . 18 79 1 63 13 13 . Level 3 13 | . . . . . . . 28 20 . 16 . 29 59 Level 4 7 | . . . . . . . 8 . . . . 38 40 Level 5 1 | . . . . . . . . . . . . 12 . High Security . | . . . . . . . . . . . . . . Max Security . | . . . . . . . . . . . . . . Peak Influence 1838 | 10 86 . 113 375 207 83 1335 894 422 728 512 1838 1194 Initial 964 | . . . 60 53 182 39 49 700 422 177 382 347 964 Average 399 | . 27 . 40 214 134 15 487 647 180 552 355 1077 1056 Influence Increases 8502 | 15 270 195 570 342 317 235 1379 692 880 811 372 1531 893 Destroy 0b10 Robot/C 3975 | . 140 80 340 280 180 120 560 280 460 400 220 660 255 Destroy 0b10 Robot/NC 283 | 15 30 . 30 . 30 20 5 60 25 . 10 10 48 Destroy Leader 728 | . 42 10 98 20 74 46 30 78 122 30 60 50 68 Allied During Kill 1554 | . . . 24 32 32 25 278 210 101 106 81 368 297 Successful Hack 130 | . 8 . 23 10 . 24 . . 30 14 . . 21 Disable Machine 249 | . 15 . 15 . . . 15 30 90 . . . 84 Anti-Garrison Action 1050 | . . . . . . . 450 . . 200 . 400 . Destroy Structure 383 | . 35 . 25 . 1 . 41 19 37 61 1 43 120 Lose Combat Pursuer 150 | . . 105 15 . . . . 15 15 . . . . Influence Decreases 7623 | 15 270 78 605 49 603 253 115 1163 1490 337 604 189 1852 Entered New Map 2874 | . . . 57 29 193 50 22 635 442 77 346 149 874 Time Decay 3252 | 15 270 52 460 . 410 183 . 458 688 . 238 . 478 Lost Part 306 | . . 26 . . . . 10 30 40 20 . . 180 Lost Ally 1191 | . . . 88 20 . 20 83 40 320 240 20 40 320 Squads Dispatched 32 | . 2 . 6 . . 5 . 4 9 . 3 . 3 Investigation 7 | . 1 . 3 . . . . . 1 . 1 . 1 Extermination 9 | . . . . . . 2 . 2 4 . . . 1 Reinforcement 10 | . 1 . 3 . . . . 1 4 . 1 . . Assault 2 | . . . . . . . . 1 . . . . 1 Garrison 4 | . . . . . . 3 . . . . 1 . . Intercept . | . . . . . . . . . . . . . . Searches Triggered . | . . . . . . . . . . . . . . Construction Impeded 2 | . . . . . . . . 1 . . 1 . . Haulers Reinforced . | . . . . . . . . . . . . . . Active Scanning Responses . | . . . . . . . . . . . . . . Cargo Convoy Interrupts 2 | . . . . . . . . . 1 . . . 1 Alert ID Control Effect 12 | . . . . . . . . . . 5 2 3 2 Stealth | -11 -10 -10 -8 -8 -8 -7 -7 -7 -6 -6 -6 -6 -5 --------- Run | Yrd Mat Sub Mat Gar Mat Fac Gar Fac Fac Gar Fac Gar Fac Distress Signals 11 | . 1 . 5 . . . . 1 2 . 1 . 1 Communications Jammed . | . . . . . . . . . . . . . . Distress Signals . | . . . . . . . . . . . . . . Times Spotted 292 | . 11 19 36 11 13 10 26 21 42 34 8 29 32 Peak Tracking Total 12 | . 4 3 6 3 3 2 6 5 6 12 2 5 9 Tactical Retreats 7 | . . 4 1 . . . . 1 1 . . . . Traps | -11 -10 -10 -8 -8 -8 -7 -7 -7 -6 -6 -6 -6 -5 ------- Run | Yrd Mat Sub Mat Gar Mat Fac Gar Fac Fac Gar Fac Gar Fac Traps Triggered 26 | . 1 . 2 3 . . 7 . 2 . . 10 1 Indirectly . | . . . . . . . . . . . . . . Trap Hack Attempts . | . . . . . . . . . . . . . . Triggered . | . . . . . . . . . . . . . . Disarmed . | . . . . . . . . . . . . . . Reprogrammed . | . . . . . . . . . . . . . . Reused . | . . . . . . . . . . . . . . Traps Extracted . | . . . . . . . . . . . . . . Installed . | . . . . . . . . . . . . . . Triggered . | . . . . . . . . . . . . . . Machines | -11 -10 -10 -8 -8 -8 -7 -7 -7 -6 -6 -6 -6 -5 ---------- Run | Yrd Mat Sub Mat Gar Mat Fac Gar Fac Fac Gar Fac Gar Fac Machines Disabled 27 | . 1 1 1 . . . 3 2 6 2 . 4 7 Max in Single Turn 1 | . 1 1 1 . . . 1 1 . 1 . 1 . Garrison Relay 8 | . . . . . . . 2 . . 2 . 4 . Machines Repaired . | . . . . . . . . . . . . . . Machines Dismantled . | . . . . . . . . . . . . . . Machines Sabotaged . | . . . . . . . . . . . . . . Overloaded Fab Kills . | . . . . . . . . . . . . . . Hacking | -11 -10 -10 -8 -8 -8 -7 -7 -7 -6 -6 -6 -6 -5 --------- Run | Yrd Mat Sub Mat Gar Mat Fac Gar Fac Fac Gar Fac Gar Fac Machines Accessed 42 | . 4 1 8 1 3 3 2 1 11 1 2 2 3 Terminals 29 | . 3 . 5 1 3 2 2 . 8 1 . 2 2 Fabricators 2 | . . . . . . . . . . . 1 . 1 Repair Stations 2 | . 1 . 1 . . . . . . . . . . Recycling Units 1 | . . . . . . . . 1 . . . . . Scanalyzers 3 | . . . 1 . . . . . 2 . . . . Garrison Access 4 | . . . 1 . . 1 . . 1 . 1 . . Total Hacks 80 | . 10 1 20 2 6 3 5 1 13 2 3 7 7 Successful 32 | . 6 1 7 1 . 2 1 1 5 1 3 1 3 Failed 47 | . 4 . 12 1 6 1 4 . 8 1 . 6 4 Catastrophic 12 | . . . 2 . 2 1 1 . 3 . . 1 2 Database Lockouts 1 | . . . 1 . . . . . . . . . . Manual 21 | . . . 10 . 6 . . . 5 . . . . Terminals 59 | . 7 . 14 2 6 2 5 . 10 2 . 7 4 Fabricators 5 | . . . . . . . . . . . 2 . 3 Repair Stations 5 | . 3 . 2 . . . . . . . . . . Recycling Units 1 | . . . . . . . . 1 . . . . . Scanalyzers 4 | . . . 2 . . . . . 2 . . . . Garrison Access 5 | . . . 2 . . 1 . . 1 . 1 . . Terminal Hacks 17 | . 4 1 4 1 . 1 1 . 2 1 . 1 1 Part Schematic 2 | . . . . . . 1 . . . . . . 1 Prototype ID Bank 1 | . 1 . . . . . . . . . . . . Open Door 2 | . . . . . . . 1 . . . . 1 . Level Access Points 1 | . . . 1 . . . . . . . . . . Branch Access Points 1 | . . . 1 . . . . . . . . . . Emergency Access Points 2 | . . . . 1 . . . . . 1 . . . Alert Level 2 | . 2 . . . . . . . . . . . . Dispatch Records 1 | . . . 1 . . . . . . . . . . Hauler Manifests 1 | . . . . . . . . . 1 . . . . Registered Components 2 | . . . 1 . . . . . 1 . . . . Zone Layout 1 | . 1 . . . . . . . . . . . . Proto ID Catalog 1 | . . 1 . . . . . . . . . . . Fabricator Hacks 4 | . . . . . . . . . . . 2 . 2 Load Schematic 2 | . . . . . . . . . . . 1 . 1 Build 2 | . . . . . . . . . . . 1 . 1 Repair Station Hacks 3 | . 2 . 1 . . . . . . . . . . Scan Component 1 | . 1 . . . . . . . . . . . . Repair 1 | . 1 . . . . . . . . . . . . Refit 1 | . . . 1 . . . . . . . . . . Recycling Unit Hacks 1 | . . . . . . . . 1 . . . . . Retrieve Components 1 | . . . . . . . . 1 . . . . . Scanalyzer 3 | . . . 1 . . . . . 2 . . . . Retrieve Study 3 | . . . 1 . . . . . 2 . . . . Garrison Access Hacks 4 | . . . 1 . . 1 . . 1 . 1 . . Unlock Access 4 | . . . 1 . . 1 . . 1 . 1 . . Unauthorized Hacks . | . . . . . . . . . . . . . . Terminals . | . . . . . . . . . . . . . . Fabricators . | . . . . . . . . . . . . . . Repair Stations . | . . . . . . . . . . . . . . Recycling Units . | . . . . . . . . . . . . . . Scanalyzers . | . . . . . . . . . . . . . . Garrison Access . | . . . . . . . . . . . . . . Data Cores Recovered 1 | . . . . . 1 . . . . . . . . Used . | . . . . . . . . . . . . . . Hacking Detections 33 | . 4 . 7 1 3 2 2 1 6 1 1 2 3 Full Trace Events 8 | . 1 . 1 . 1 . 1 . . . 1 2 1 Feedback Events . | . . . . . . . . . . . . . . Feedback Blocked . | . . . . . . . . . . . . . . Robot Schematics Acquired . | . . . . . . . . . . . . . . Robots Built . | . . . . . . . . . . . . . . Authchips . | . . . . . . . . . . . . . . Time . | . . . . . . . . . . . . . . Total Robot Build Rating . | . . . . . . . . . . . . . . Part Schematics Acquired 2 | . . . . . . 1 . . . . . . 1 Parts Built 4 | . . . . . . . . . . . 2 . 2 Authchips . | . . . . . . . . . . . . . . Time 223 | . . . . . . . . . . . 95 . 128 Total Part Build Rating 26 | . . . . . . . . . . . 10 . 16 Part Studies Acquired 3 | . . . 1 . . . . . 2 . . . . Parts Repaired 1 | . 1 . . . . . . . . . . . . Time 26 | . 26 . . . . . . . . . . . . Parts Recycled . | . . . . . . . . . . . . . . Recycled Matter . | . . . . . . . . . . . . . . Retrieved Matter . | . . . . . . . . . . . . . . Retrieved Components 3 | . . . . . . . . 3 . . . . . Parts Scanalyzed . | . . . . . . . . . . . . . . Part Schematics Acquired . | . . . . . . . . . . . . . . Parts Damaged . | . . . . . . . . . . . . . . Bothacking | -11 -10 -10 -8 -8 -8 -7 -7 -7 -6 -6 -6 -6 -5 ------------ Run | Yrd Mat Sub Mat Gar Mat Fac Gar Fac Fac Gar Fac Gar Fac Used RIF Installer 4 | . . . . 1 . . 1 . . 1 . 1 . Threat Obfuscator 1 | . . . . . . . . . . . . 1 . Zone Cloak 1 | . . . . . . . 1 . . . . . . Alert ID Control 1 | . . . . . . . . . . 1 . . . Robots Hacked 8 | . . . . . . . . 3 . 1 . 1 3 Non-combat 5 | . . . . . . . . 3 . . . . 2 Combat 3 | . . . . . . . . . . 1 . 1 1 Robot Hacks Applied 8 | . . . . . . . . 3 . 1 . 1 3 start_evac 1 | . . . . . . . . 1 . . . . . overwrite_iff 2 | . . . . . . . . . . 1 . 1 . formatsys_low 4 | . . . . . . . . 2 . . . . 2 formatsys_high 1 | . . . . . . . . . . . . . 1 Relay Couplers Released 35 | . . . . . . 3 9 . . 7 . 16 . Machine Destruction 32 | . . . . . . . 9 . . 7 . 16 . Programmers 3 | . . . . . . 3 . . . . . . . Attached 6 | . . . . . . . . 2 1 . . 1 2 Fabnet Peak Effective % . | . . . . . . . . . . . . . . Robots Rewired 8 | . . . . . . . . . . 4 . 4 . Allies Hacked 16 | . . . . . . 1 . 3 3 . . 1 8 Hacks Repelled . | . . . . . . . . . . . . . . Allies | -11 -10 -10 -8 -8 -8 -7 -7 -7 -6 -6 -6 -6 -5 -------- Run | Yrd Mat Sub Mat Gar Mat Fac Gar Fac Fac Gar Fac Gar Fac Total Allies 26 | . . . . . . . 4 2 . 5 . 9 6 Largest Group 8 | . . . . . . . 4 5 1 4 . 8 8 Highest-Rated Group 385 | . . . . . . . 205 205 80 56 . 385 385 Highest-Rated Ally 80 | . . . . . . . 80 80 80 14 . 62 65 Total Orders 3 | . . . 1 . . . . . 1 . . . 1 DROP 3 | . . . 1 . . . . . 1 . . . 1 Ally Attacks 989 | . . . 70 29 56 35 83 92 187 100 50 148 139 Total Damage 26721 | . . . 1293 760 1199 933 2220 2840 4163 2829 1890 4750 3844 Kills 233 | . . . 11 14 15 8 27 27 28 22 15 37 29 Allies Corrupted 8 | . . . . . . . . 1 1 . . 1 5 Allies Melted 4 | . . . 1 . . . 1 1 1 . . . . Borg Created 61 | . . . 12 . . 2 7 . 18 12 . 4 6 Largest Collective 5 | . . . 3 . . 3 5 . 4 4 . 5 5 Intel | -11 -10 -10 -8 -8 -8 -7 -7 -7 -6 -6 -6 -6 -5 ------- Run | Yrd Mat Sub Mat Gar Mat Fac Gar Fac Fac Gar Fac Gar Fac Active Infowar (turns) 8395 | 18 741 2009 . . . . . . 846 1326 504 1731 1220 Optics 5627 | . . . . . . . . . 846 1326 504 1731 1220 Sensors 351 | . . 351 . . . . . . . . . . . Terrain 759 | 18 741 . . . . . . . . . . . . Structural 1658 | . . 1658 . . . . . . . . . . . Robot Analysis Total . | . . . . . . . . . . . . . . Derelict Logs Recovered 1 | . . 1 . . . . . . . . . . . Drone Launches . | . . . . . . . . . . . . . . Drone Recoveries . | . . . . . . . . . . . . . . Exploration | -11 -10 -10 -8 -8 -8 -7 -7 -7 -6 -6 -6 -6 -5 ------------- Run | Yrd Mat Sub Mat Gar Mat Fac Gar Fac Fac Gar Fac Gar Fac Turns Passed 21016 | 109 741 3884 1766 842 987 1519 2117 1151 3119 1326 504 1731 1220 Spaces Moved 8302 | 53 371 1739 662 344 311 402 641 413 1328 702 169 650 517 Core 17 | 2 . 4 . . . . . . . . . . 11 Treads 6109 | 51 371 562 576 344 311 402 46 91 1328 702 169 650 506 Legs 1878 | . . 902 59 . . . 595 322 . . . . . Wheels . | . . . . . . . . . . . . . . Hover . | . . . . . . . . . . . . . . Flight 298 | . . 271 27 . . . . . . . . . . Fastest Speed 50 | 50 160 160 120 245 245 325 263 193 161 161 161 241 100 Average Speed 222 | 155 160 205 224 245 300 325 269 241 213 162 240 241 193 Slowest Speed 750 | 160 160 595 275 245 325 325 750 320 243 241 241 241 450 Overloaded Moves . | . . . . . . . . . . . . . . Propulsion Burnouts . | . . . . . . . . . . . . . . Robots Hopped . | . . . . . . . . . . . . . . Potential Cave-ins . | . . . . . . . . . . . . . . Cave-ins Triggered . | . . . . . . . . . . . . . . Exploration Rate (%) 40 | 3 66 69 55 41 30 14 69 19 42 53 9 75 15 Regions Visited 13 Branch Regions 1 Pre-discovered Areas 1 | . . 1 . . . . . . . . . . . Known Exits Taken 6 | . . 1 1 . 1 1 . . 1 . 1 . . Unknown Exits Taken 3 | 1 1 . . . . . . 1 . . . . . Scrap Searched . | . . . . . . . . . . . . . . Spaces Dug 3 | . . 1 . . . . 1 . . 1 . . . Terrain Destroyed 187 | . 45 98 25 . . . 1 . 4 1 . . 13 Melee 3 | . . 1 . . . . 1 . . 1 . . . Projectile 18 | . . 7 6 . . . . . . . . . 5 AOE 166 | . 45 90 19 . . . . . 4 . . . 8 Terrain Rammed . | . . . . . . . . . . . . . . Walls Destroyed . | . . . . . . . . . . . . . . Machines Disabled . | . . . . . . . . . . . . . . Actions | -11 -10 -10 -8 -8 -8 -7 -7 -7 -6 -6 -6 -6 -5 --------- Run | Yrd Mat Sub Mat Gar Mat Fac Gar Fac Fac Gar Fac Gar Fac Total 10370 | 67 470 1955 882 346 365 608 1005 543 1566 834 267 778 684 Wait 1399 | . 49 81 158 . 47 191 284 94 172 66 97 59 101 Move 8286 | 53 370 1738 661 342 310 401 639 412 1327 700 168 648 517 Hop . | . . . . . . . . . . . . . . Pick Up 68 | 2 14 6 6 . 3 6 10 3 7 7 . 3 1 Fast Attach 41 | 7 . 5 6 . 1 . 1 . 6 2 1 1 11 Attach 20 | . . 8 . . . 1 1 4 2 1 . . 3 Detach 4 | . . 1 . . 1 . . . . . . . 2 Swap 63 | . 7 9 6 . 2 1 5 7 9 6 . 8 3 Drop 64 | . 3 10 9 . 1 . 9 2 12 9 1 4 4 Fire 166 | 5 27 39 18 . . 3 6 12 8 5 . 16 27 Melee 122 | . . 58 5 . . 1 13 . . 26 . 16 3 Ram 2 | . . . . . . . . . . . . . 2 Kick 6 | . . . . . . . . 6 . . . . . Crush 2 | . . . . . . . . 1 . . . . 1 Escape Stasis 57 | . . . . 4 . . 30 . 2 . . 19 2 Rewire 9 | . . . 1 . . 2 . 2 3 . . . 1 Trap . | . . . . . . . . . . . . . . Miscellaneous 61 | . . . 12 . . 2 7 . 18 12 . 4 6 Route ------- -11/Scrapyard -10/Materials (discovered 4 exits: [*Mat x2] / [*Min] / *Sub) -10/Subcaves (discovered 3 exits: *Mat x2 / [*Rec]) -8/Materials (discovered 4 exits: Fac x3 / Gar) -8/Garrison -8/Materials -7/Factory (discovered 2 exits: *Fac / Gar) -7/Garrison (discovered 3 exits: *Fac x3) -7/Factory -6/Factory (discovered 2 exits: *Fac / Gar) -6/Garrison -6/Factory -6/Garrison (discovered 3 exits: *Fac x3) -5/Factory (discovered 1 exit: [*Upp]) History --------- Turn | Location | Event 18 | -11/Scrapyard | Discovered new exit (range 16) 110 | -11/Scrapyard | Entered Materials 187 | -10/Materials | Met 8R-AWN 289 | -10/Materials | Discovered new exit (range 7) 306 | -10/Materials | Build established: Mutant 362 | -10/Materials | Discovered new exit (range 15) 709 | -10/Materials | Discovered new exit (range 8) 748 | -10/Materials | Repaired Grenade Launcher 784 | -10/Materials | Discovered new exit (range 9) 851 | -10/Materials | Entered Subcaves 908 | -10/Subcaves | Shifting Twisted Machinery released Sub. Laser 966 | -10/Subcaves | Shifting Twisted Machinery released Mak. Hammer 984 | -10/Subcaves | Shifting Twisted Machinery released Sub. Beam Cannon 1705 | -10/Subcaves | A swath of the cavern ceiling suddenly collapsed 1797 | -10/Subcaves | Discovered new exit (range 11) 2024 | -10/Subcaves | Shifting Twisted Machinery released Mak. Hacking Suite 2055 | -10/Subcaves | Shifting Twisted Machinery released Mak. Light Armor Plating 2194 | -10/Subcaves | Visited 4L-MR0's lab 2208 | -10/Subcaves | Found Prototype Special Melee Weapon 2431 | -10/Subcaves | Core integrity fell below 50% 2468 | -10/Subcaves | Lost 5 parts (4n1w) 3550 | -10/Subcaves | Discovered new exit (range 12) 3589 | -10/Subcaves | Identified exit to Materials 4173 | -10/Subcaves | Discovered new exit (range 12) 4206 | -10/Subcaves | Core integrity fell below 20% 4735 | -10/Subcaves | Entered Materials 4735 | -8/Materials | Evolved 4 slots: Utility x1, Weapon x3 5050 | -8/Materials | Identified exit to Factory 5356 | -8/Materials | Build established: Gunner 5593 | -8/Materials | Identified 1B-0RG's Assimilator 5600 | -8/Materials | Assimilating Scavenger 3a into Collective. 5645 | -8/Materials | Assimilating Shotgunner 3a into Collective. 5659 | -8/Materials | Assimilating Shotgunner 3b into Collective. 5807 | -8/Materials | Assimilating Bruiser 3a into Collective. 5827 | -8/Materials | Assimilating Trooper 3a into Collective. 5834 | -8/Materials | Assimilating Engineer 3a into Collective. 5889 | -8/Materials | Assimilating Trooper 3b into Collective. 5892 | -8/Materials | Assimilating Informer 3a into Collective. 5898 | -8/Materials | Build established: Mutant 5936 | -8/Materials | Assimilating Trooper 3c into Collective. 5953 | -8/Materials | Lost 3 allies 5966 | -8/Materials | Assimilating Transporter 3a into Collective. 6006 | -8/Materials | Assimilating Rogue 3a into Collective. 6285 | -8/Materials | Central database locked down 6447 | -8/Materials | Assimilating Commando 3a into Collective. 6499 | -8/Materials | Identified exit to Garrison 6501 | -8/Materials | Entered Garrison 6501 | -8/Garrison | Accompanied by 3 allies 6633 | -8/Garrison | Triggered checkpoint 6747 | -8/Garrison | Triggered checkpoint 6873 | -8/Garrison | Triggered checkpoint 6895 | -8/Garrison | Triggered checkpoint 6931 | -8/Garrison | Triggered checkpoint 7051 | -8/Garrison | Triggered checkpoint 7142 | -8/Garrison | Discovered new exit (range 14) 7289 | -8/Garrison | Installed Relay Interface Framework 7343 | -8/Garrison | Entered Materials 7343 | -8/Materials | Accompanied by 2 allies 8304 | -8/Materials | Discovered exit to Factory (range 3) 8330 | -8/Materials | Entered Factory 8330 | -7/Factory | Accompanied by 2 allies 8330 | -7/Factory | Evolved 2 slots: Propulsion x1, Weapon x1 9493 | -7/Factory | Assimilating Hacker 4a into Collective. 9540 | -7/Factory | Garrison activated, responded to threat 9591 | -7/Factory | Discovered new exit (range 20) 9746 | -7/Factory | Assimilating Trooper 4a into Collective. 9812 | -7/Factory | Identified exit to Garrison 9849 | -7/Factory | Entered Garrison 9849 | -7/Garrison | Accompanied by 3 allies 10001 | -7/Garrison | Lost 3 allies 10166 | -7/Garrison | Assimilating Soldier 4a into Collective. 10172 | -7/Garrison | Assimilating Trooper 4b into Collective. 10178 | -7/Garrison | Assimilating Guardian 4a into Collective. 10181 | -7/Garrison | Assimilating Trooper 4c into Collective. 10393 | -7/Garrison | Triggered checkpoint 10437 | -7/Garrison | Garrison Relay disabled 10543 | -7/Garrison | Triggered checkpoint 10548 | -7/Garrison | Discovered new exit (range 16) 10548 | -7/Garrison | Assimilating Trooper 4d into Collective. 10632 | -7/Garrison | Rescued a captive Derelict 10634 | -7/Garrison | Assimilating Guardian 4b into Collective. 10634 | -7/Garrison | Rescued a captive Derelict 10787 | -7/Garrison | Triggered checkpoint 10917 | -7/Garrison | Triggered checkpoint 11083 | -7/Garrison | Triggered checkpoint 11118 | -7/Garrison | Garrison Relay disabled 11181 | -7/Garrison | Assimilating Hacker 4b into Collective. 11318 | -7/Garrison | Found embedded Infiltrators 11354 | -7/Garrison | Discovered new exit (range 13) 11536 | -7/Garrison | Build established: Bothacker-Mutant 11571 | -7/Garrison | Triggered checkpoint 11666 | -7/Garrison | Triggered checkpoint 11710 | -7/Garrison | Expanded RIF knowledge: Zone Cloak 11914 | -7/Garrison | Discovered new exit (range 14) 11966 | -7/Garrison | Entered Factory 11966 | -7/Factory | Accompanied by 9 allies 12766 | -7/Factory | First assault squad dispatched 12854 | -7/Factory | P-60 Hacker assimilated allied Serf 4a 12938 | -7/Factory | Lost 3 allies 13050 | -7/Factory | Discovered new exit (range 15) 13117 | -7/Factory | Entered another Factory area 13117 | -6/Factory | Accompanied by 3 allies 13117 | -6/Factory | Evolved 2 slots: Propulsion x1, Utility x1 13526 | -6/Factory | Assimilating Guardian 5a into Collective. 13725 | -6/Factory | Assimilating Soldier 5a into Collective. 13828 | -6/Factory | Assimilating Veteran 5a into Collective. 13841 | -6/Factory | Assimilating Soldier 5b into Collective. 13843 | -6/Factory | Cargo convoy interrupted 13846 | -6/Factory | Assimilating Soldier 5c into Collective. 13849 | -6/Factory | Assimilating Soldier 5d into Collective. 13881 | -6/Factory | Lost 5 allies 14141 | -6/Factory | Build established: Scavenger-Mutant 14216 | -6/Factory | Assimilating Conveyor 5a into Collective. 14552 | -6/Factory | Assimilating Chaingunner 5a into Collective. 14565 | -6/Factory | Discovered new exit (range 10) 14610 | -6/Factory | Assimilating Chaingunner 5b into Collective. 14711 | -6/Factory | Assimilating Smith 5a into Collective. 15073 | -6/Factory | Assimilating Excavator 5a into Collective. 15092 | -6/Factory | Assimilating Engineer 5a into Collective. 15193 | -6/Factory | Assimilating Guardian 5b into Collective. 15367 | -6/Factory | Assimilating Soldier 5e into Collective. 15376 | -6/Factory | Assimilating Fighter 5a into Collective. 15391 | -6/Factory | Assimilating Gladiator 5a into Collective. 16154 | -6/Factory | Assimilating Soldier 5f into Collective. 16168 | -6/Factory | Assimilating Soldier 5g into Collective. 16234 | -6/Factory | Identified exit to Garrison 16236 | -6/Factory | Entered Garrison 16236 | -6/Garrison | Accompanied by 2 allies 16272 | -6/Garrison | Triggered checkpoint 16275 | -6/Garrison | Assimilating Soldier 5h into Collective. 16308 | -6/Garrison | Garrison Relay disabled 16335 | -6/Garrison | Build established: Mutant 16493 | -6/Garrison | Triggered checkpoint 16509 | -6/Garrison | Assimilating Soldier 5i into Collective. 16546 | -6/Garrison | Triggered checkpoint 16568 | -6/Garrison | Triggered checkpoint 16570 | -6/Garrison | Assimilating Gladiator 5b into Collective. 16762 | -6/Garrison | Expanded RIF knowledge: Alert ID Control 16770 | -6/Garrison | Triggered checkpoint 16773 | -6/Garrison | Assimilating Soldier 5j into Collective. 16789 | -6/Garrison | Garrison Relay disabled 16828 | -6/Garrison | Discovered new exit (range 21) 16961 | -6/Garrison | Assimilating Gladiator 5c into Collective. 17016 | -6/Garrison | Assimilating Gladiator 5d into Collective. 17034 | -6/Garrison | Assimilating Gladiator 5e into Collective. 17040 | -6/Garrison | Assimilating Soldier 5k into Collective. 17045 | -6/Garrison | Assimilating Soldier 5l into Collective. 17050 | -6/Garrison | Assimilating Guardian 5c into Collective. 17056 | -6/Garrison | Assimilating Guardian 5d into Collective. 17074 | -6/Garrison | Lost 7 allies 17090 | -6/Garrison | Build established: Bothacker-Mutant 17132 | -6/Garrison | Lost 4 allies 17493 | -6/Garrison | Assimilating Marksman 5a into Collective. 17562 | -6/Garrison | Entered Factory 17562 | -6/Factory | Accompanied by 4 allies 17809 | -6/Factory | Fabricated Power Sword (x2) 17991 | -6/Factory | Garrison activated, responded to threat 18037 | -6/Factory | Core integrity fell below 50% 18063 | -6/Factory | Identified exit to Garrison 18066 | -6/Factory | Entered Garrison 18066 | -6/Garrison | Accompanied by 3 allies 18124 | -6/Garrison | Triggered checkpoint 18168 | -6/Garrison | Assimilating Hacker 5a into Collective. 18219 | -6/Garrison | Triggered checkpoint 18266 | -6/Garrison | Triggered checkpoint 18274 | -6/Garrison | Assimilating Fighter 5b into Collective. 18396 | -6/Garrison | Triggered checkpoint 18401 | -6/Garrison | Assimilating Guardian 5e into Collective. 18444 | -6/Garrison | Garrison Relay disabled 18564 | -6/Garrison | Discovered new exit (range 19) 18601 | -6/Garrison | Found embedded Infiltrators 18790 | -6/Garrison | Triggered checkpoint 18918 | -6/Garrison | Triggered checkpoint 18956 | -6/Garrison | Garrison Relay disabled 19012 | -6/Garrison | Discovered new exit (range 21) 19020 | -6/Garrison | Triggered checkpoint 19364 | -6/Garrison | Discovered new exit (range 12) 19368 | -6/Garrison | Triggered checkpoint 19414 | -6/Garrison | Garrison Relay disabled 19516 | -6/Garrison | Triggered checkpoint 19521 | -6/Garrison | Rescued a captive Derelict 19522 | -6/Garrison | Rescued a captive Derelict 19522 | -6/Garrison | Assimilating Guardian 5f into Collective. 19578 | -6/Garrison | Triggered checkpoint 19594 | -6/Garrison | Garrison Relay disabled 19686 | -6/Garrison | Expanded RIF knowledge: Threat Obfuscation 19797 | -6/Garrison | Entered Factory 19797 | -5/Factory | Accompanied by 12 allies 19797 | -5/Factory | Evolved 2 slots: Utility x1, Weapon x1 19801 | -5/Factory | Discovered new exit (range 12) 20190 | -5/Factory | Lost 3 allies 20236 | -5/Factory | Fabricated Biometal Medium Treads (x2) 20397 | -5/Factory | First assault squad dispatched 20529 | -5/Factory | Assimilating Veteran 6a into Collective. 20536 | -5/Factory | Assimilating Warrior 6a into Collective. 20542 | -5/Factory | Assimilating Beamer 6a into Collective. 20577 | -5/Factory | Lost 3 allies 20687 | -5/Factory | Assimilating Informer 6a into Collective. 20858 | -5/Factory | Cargo convoy interrupted 20884 | -5/Factory | P-70 Sage assimilated allied V1-CKN(h) 20884 | -5/Factory | Assimilating Sage 6a into Collective. 20891 | -5/Factory | Assimilating V1-CKN(h) into Collective. 20977 | -5/Factory | System corruption reached 10% 20980 | -5/Factory | Core integrity fell below 50% 20993 | -5/Factory | Lost 10 allies 21004 | -5/Factory | Core integrity fell below 20% 21017 | -5/Factory | Destroyed by P-70 Sage with Tesla Rifle Last Messages --------------- 20996_ H-66 Slayer destroyed. 20996_ U-05 Engineer lays Concrete. 20997_ M-28 Smith repairs P-70 Sage Antigrav System. 20997_ Penetrated by Slug. 20998_ Slug penetrates M-28 Smith. 20998_ U-05 Engineer lays Concrete. 20999_ System corrupted: Energy discharge (-35). 21000_ M-28 Smith destroyed. 21000_ K-01 Serf collects debris. 21000_ Gauss Rifle destroyed. 21002_ Acquired 140 matter. 21003_ Penetrated by Slug. 21004_ Acquired Segregator. 21004_ K-01 Serf collects debris. 21010_ Penetrated by Slug. 21012_ K-01 Serf collects debris. 21016_ Slug penetrates Wall. 21016_ Penetrated by Slug. 21017_ Segregator destroyed. Map ----- +----------------------------------------------------+ | ???????????????????????????????????# " " " " " # | | ???????????????????????????????????# " " " " " # | | ???????????????????????????????????# " " " " " # | | ???????????????????????????????????# " " " " " # | | ???????????????????????????????????# " " " " " # | | ???????????????????????????????????# # | | ???????????????????????????????????########+#+### | | ???????????????????????????############## #?# | | ???????????????????????????# # ### | | ???????????????????????????# # T## | | ???????????????????????????# + ## | | ???????????????????????????# # ### | | ???????????????????????????# # #?# | | ???????????????????????????############## #### | | ??????????????????????????????# # | | ??????????????????????????????# # | | ??????????????????????????????# ! % # | | ??????????????????????##???##?# =%+% | | ??????????????#############!#?# "" """[# | | ??????????????# [!![[=[#??#="""""""*# | | ??????????????# =%[[%%=####* """""" # | | ??????????????# """"["!!!!=+=%+ """"""" # | | ??????????????# """" ""!*=[############## | | ????????H?????# """" "==!ph*[#??????????# | | ??????????????# "" !=!]!u###?????????# | | ??????????????# """" "[==@=! #?????????# | | ??????????????# """" * %## #????????######## | | ??????????????# """" "%[##?##???????????????# | | ??????????????# *==%#??????????????????# | | ??????????????# %=k%!#??????????????????+ | | ??????????????# %!=##??????????????????# | | ??????????????######+#######???????????????????# | | ??????????????????? ??????????????????????????# | | ?????????????????? ??????????????????????????# | | ????????????????? ??????????????????????????# | | ???????????????? ??????????????????????????# | | ??????????????? ??????????????????????????# | | ??????????????#### ???????????????????????????# | | ?????????????????# ???????????????????????????# | | ????????????????? ???????????????????????????# | | ????????????????? ???????????????????????????# | | ????????????????# ???????????????????????????# | | ????????????????+ ????????????????????????????# | | ????????????????# ????????????????????????????+ | | ????????????????# ?????????????????????????????# | | ???????????????????????????????????????????????# | | ???????????????????????????????????????????????+ | | ???????????????????????????????????????????????### | | ?????????????????????????????????????????????????? | | ?????????????????????????????????????????????????? | +----------------------------------------------------+ Best States ------------- Heat Dissipation 40 Energy Generation 21 Energy Capacity 310 Matter Stores 550 Matter Capacity 550 Sight Range 22 Robot Scan Range 14 Terrain Scan Range 16 Terrain Scan Density 10 Armor Coverage 225 Phase Shifting 15 Evasion (%) 55 Targeting Accuracy 8 Recoil Reduction 4 Offensive Hacking 11 Relay Coupler Types 3 Relay Coupler Value 64 Item Schematics ----------------- Power Sword | -7/Factory | Hacked Biometal Medium Treads | -5/Factory | Hacked Robot Schematics ------------------ None Fabricated ------------ Power Sword | x2 | -6/Factory Biometal Medium Treads | x2 | -5/Factory Repaired ---------- Grenade Launcher | 48% | -10/Materials Studied --------- Imp. Hover Unit | -8/Materials | Hacked Lgt. Treads | -6/Factory | Hacked Remote Datajack | -6/Factory | Hacked Alien Tech Used ----------------- None Achievements -------------- Be The Sidekick Follow The Leader Generalissimo Infiltrator Not Today, Chutes Challenges ------------ None Game ------ Seed PowerAssembledDerivative Manual? 0 Play Time 01:56:14 Cumulative 122.9 hours Start 2026.04.04 @ 18:40:45 End 2026.04.04 @ 20:57:46 Sessions 1 Manual Loads 0 Difficulty Rogue Special Mode None Game No. 182 Rogue 182 Adventurer 0 Explorer 0 Win Type - Total 1 Types 1/0/0/0/0/0/0/0/0/0 Lore% 50 Gallery% 52 Achievement% 40 Wizard Run 0 Options --------- Layout 1 ASCII 0 Keyboard 1 Movement Arrows Keybinds 0 Fullscreen 1 Font 24/Smallcaps Map View 50x35 Zoom Use 0% Tactical HUD 1 Map Filters NONE Filters NONE Steam 1 RUN: 6d963547-0837-4c2a-b628-8333c879f26b